Cogmind - Beta 17 @@@ ROGUE MODE // 2026.08.22 @ 08:38:36 Player: MrFartsburg Result: Destroyed by Y-45 Defender with Heavy Assault Rifle Performance ------------- Evolutions (1) 500 Regions Visited (3) 600 Robots Destroyed (30) 150 Value Destroyed (917) 917 Prototype IDs (1) 20 Alien Tech Used (0) 0 Bonus (0) 0 TOTAL SCORE: 2187 Bonus ------- None Cogmind --------- Core Integrity 0/400 Matter 300/300 Energy 279/280 System Corruption 0% Temperature Cool (27) Movement Core (500) Ox9 Location -9/Storage Parts ------- > --- POWER (1) -------- Heavy Ion Engine > --- PROPULSION (2) --- (None) > --- UTILITY (3) ------ Large Storage Unit Terrain Scan Processor > --- WEAPON (3) ------- Small Laser > --- INVENTORY (15) --- Light Nuclear Core Heat Sink Targeting Computer Light Armor Plating Peak State ------------ > --- POWER ------------ Heavy Ion Engine > --- PROPULSION ------- Light Treads Light Treads > --- UTILITY ---------- Heat Sink Large Storage Unit Terrain Scan Processor > --- WEAPON ----------- Small Laser Light EM Pulse Cannon Particle Cannon > --- INVENTORY -------- Heavy Ion Engine Light Nuclear Core Light Armor Plating [Rating: 14] Favorites ----------- Power Heavy Ion Engine Engine Heavy Ion Engine Propulsion Light Treads Treads Light Treads Utility Large Storage Unit Device ECM Suite Storage Large Storage Unit Processor Terrain Scan Processor Protection Medium Armor Plating Weapon Assault Rifle Energy Gun Small Laser Energy Cannon Particle Cannon Ballistic Gun Assault Rifle Ballistic Cannon Light Cannon Launcher EMP Blaster Build | -11 -10 -9 -9 ------- Run | Yrd Mat Mat Sto Slots Evolved 2 | . . 2 . Power . | . . . . Propulsion . | . . . . Utility 1 | . . 1 . Weapon 1 | . . 1 . Parts Attached 32 | 6 5 3 18 Power 5 | 1 2 . 2 Engine 5 | 1 2 . 2 Core . | . . . . Reactor . | . . . . Propulsion 6 | 2 . . 4 Treads 6 | 2 . . 4 Leg . | . . . . Wheel . | . . . . Hover . | . . . . Flight . | . . . . Utility 9 | 1 2 2 4 Device 2 | . 1 . 1 Storage 3 | 1 1 1 . Processor 1 | . . . 1 Hackware . | . . . . Protection 3 | . . 1 2 Artifact . | . . . . Weapon 12 | 2 1 1 8 Energy Gun 4 | . . 1 3 Energy Cannon 3 | . . . 3 Ballistic Gun 3 | 2 . . 1 Ballistic Cannon 1 | . . . 1 Launcher 1 | . 1 . . Special Weapon . | . . . . Impact Weapon . | . . . . Slashing Weapon . | . . . . Piercing Weapon . | . . . . Special Melee Weapon . | . . . . Unidentified Prototypes 1 | . . . 1 Parts Lost 20 | . 1 2 17 Power 3 | . 1 1 1 Propulsion 4 | . . . 4 Utility 3 | . . . 3 Weapon 10 | . . 1 9 Highest Loss Streak 7 | . 1 2 7 To Critical Strikes . | . . . . Average Backups 3 | . 3 4 3 Power . | . . . . Propulsion . | . . 1 . Utility . | . . . 1 Weapon 1 | . 2 3 . Tool/Special . | . . . . Unused Backups 3 | . . . 3 Power 1 | . . . 1 Propulsion . | . . . . Utility 1 | . . . 1 Weapon 1 | . . . 1 Tool/Special . | . . . . Average Slot Usage (%) 94 | . 95 96 93 Engine 10 | . 13 9 8 Treads 23 | . 28 21 21 Device 9 | . 10 11 8 Storage 11 | . 14 11 11 Processor 4 | . . . 8 Protection 3 | . . 10 4 Energy Gun 4 | . . 10 6 Energy Cannon 4 | . . . 8 Ballistic Gun 14 | . 22 10 10 Ballistic Cannon 3 | . . . 5 Launcher 3 | . 5 11 1 Peak Build Rating 14 | 6 8 12 14 Average Rating 10 | 4 7 11 12 On Entrance 6 | . 6 8 10 Avg Prop Armor Cover (%) . | . . . . Naked Turns . | . . . . Heaviest Build 41 | 13 21 41 40 Greatest Support 40 | 40 40 40 40 Greatest Overweight (x) 10 | . . 1 10 Average Overweight (x) . | . . . . Largest Inventory Capacity 15 | 8 10 15 15 Average Capacity 12 | 7 8 14 15 Most Carried 7 | . 7 5 6 Average Carried 3 | . 3 4 3 Final Capacity 15 | 8 10 15 15 Final Carried 6 | . 6 4 4 Class Distribution -------------------- 37% | Mutant 29% | Gunner 18% | Tank 14% | Scavenger-Tank Dominant Class ---------------- Mutant | -10/Materials Tank | -9/Materials Gunner | -9/Storage Resources | -11 -10 -9 -9 ----------- Run | Yrd Mat Mat Sto Matter Collected 822 | 206 69 84 463 Remotely . | . . . . Salvage Created 1019 | . 84 103 832 Parts 72 | . 12 6 54 Haulers Intercepted 1 | . . . 1 Recyclers Shooed 1 | . . . 1 Parts Field Recycled . | . . . . Retrieved Matter . | . . . . Parts Self-Destructed . | . . . . Prevented . | . . . . Parts Restored . | . . . . Kills | -11 -10 -9 -9 ------- Run | Yrd Mat Mat Sto Combat Hostiles Destroyed 24 | . 3 2 19 Guns 12 | . 3 2 7 Cannons 12 | . . . 12 Classes Destroyed 7 | . 2 3 2 Worker 1 | . . . 1 Builder 2 | . . 1 1 Hauler 1 | . . . 1 Watcher 2 | . 2 . . Swarmer 4 | . 3 . 1 Grunt 11 | . . 1 10 Sentry 9 | . . 1 8 Best Kill Streak 7 | . 2 2 7 Combat Bots Only 7 | . 2 2 7 Max Kills in Single Turn 1 | . 1 1 1 Gunslinging . | . . . . Exploded . | . . . . Melee . | . . . . Uniques/NPCs Destroyed . | . . . . Combat | -11 -10 -9 -9 -------- Run | Yrd Mat Mat Sto Hostile Shots Fired 286 | . 26 31 229 Missed 71 | . 6 9 56 Hits 215 | . 20 22 173 Projectile 215 | . 20 22 173 Critical Strikes 8 | . . . 8 Damage Taken 2708 | . 294 301 2113 Core 451 | . 46 43 362 Absorbed by Shields . | . . . . Regen/Repaired (Parts) 9 | . 9 . . Core Remaining (%) 90 | 100 81 . . Volleys Fired 73 | . 9 11 53 Largest 3 | . 2 3 3 Hottest 164 | . 53 109 164 Shots Fired 177 | . 16 24 137 Gun 105 | . 13 22 70 Cannon 67 | . . . 67 Launcher 5 | . 3 2 . Special . | . . . . Kinetic 110 | . 13 11 86 Thermal 42 | . . 11 31 Explosive . | . . . . Electromagnetic 25 | . 3 2 20 Robot Hit Streak 12 | . 3 11 12 Robot Miss Streak 3 | . 3 3 3 Penetration Max . | . . . . Secondary Targets 2 | . . 2 . Max Gunslinging Chain 1 | . . 1 . Shots Hit Robots 118 | . 8 17 93 Core Hits 50 | . 5 5 40 Critical Kills . | . . . . Critical Parts Destroyed 1 | . . 1 . Critical Strikes 4 | . . 4 . Burn 3 | . . 3 . Destroy 1 | . . 1 . Melee Attacks . | . . . . Impact . | . . . . Slashing . | . . . . Piercing . | . . . . Sneak Attacks . | . . . . Combat Hostiles . | . . . . Follow-up Attacks . | . . . . Damage Inflicted 1945 | . 120 338 1487 Guns 820 | . 62 218 540 Cannons 886 | . . . 886 Explosions 216 | . 56 119 41 Melee . | . . . . Ramming 23 | . 2 1 20 Kinetic 919 | . 62 99 758 Thermal 579 | . . 194 385 Explosive . | . . . . Electromagnetic 424 | . 56 44 324 Impact . | . . . . Slashing . | . . . . Piercing . | . . . . Highest Corruption 1 | . 1 . . Average Corruption 1 | . 1 . . Corruption Purged . | . . . . Corruption Blocked . | . . . . Effects 1 | . 1 . . Message Errors 1 | . 1 . . Overload Shots . | . . . . Overflow Damage . | . . . . Projectiles . | . . . . Explosions . | . . . . Melee . | . . . . Knockbacks 2 | . . . 2 Impact . | . . . . Kinetic 2 | . . . 2 Secondary . | . . . . Self-Inflicted Damage 118 | . 50 38 30 Shots 6 | . 3 2 1 Rammed 4 | . 1 . 3 Targets Rammed 6 | . 1 1 4 Kicked . | . . . . Crushed 2 | . . 1 1 Highest Temperature 351 | . 9 213 351 Average Temperature 89 | . 6 108 86 Received Heat Transfer 972 | . 18 132 822 Effects 1 | . . . 1 Damage (minor) 1 | . . . 1 Siege Activations . | . . . . Martial Activations . | . . . . Shielding Activations . | . . . . Robots Disrupted . | . . . . Combat Hostiles . | . . . . Robots Corrupted . | . . . . Combat Hostiles . | . . . . Parts Fried . | . . . . Impact Corruptions . | . . . . Robots Melted . | . . . . Combat Hostiles . | . . . . Parts Melted 5 | . . 3 2 Heat Transferred 1361 | . . 618 743 Parts Sabotaged . | . . . . Parts Stolen . | . . . . Parts Stripped . | . . . . Power Chain Reactions 3 | . 1 1 1 Alert | -11 -10 -9 -9 ------- Run | Yrd Mat Mat Sto Maximum Alert Level . | . . . . Low Security (%) 100 | 100 100 100 100 Level 1 . | . . . . Level 2 . | . . . . Level 3 . | . . . . Level 4 . | . . . . Level 5 . | . . . . High Security . | . . . . Max Security . | . . . . Peak Influence 128 | . 50 68 128 Initial 20 | . . . 20 Average 34 | . 5 6 56 Influence Increases 798 | . 95 83 620 Destroy 0b10 Robot/C 480 | . 60 40 380 Destroy 0b10 Robot/NC 30 | . 10 5 15 Destroy Leader 156 | . 14 20 122 Successful Hack 28 | . 7 . 21 Disable Machine 60 | . . 15 45 Destroy Structure 14 | . 4 3 7 Lose Combat Pursuer 30 | . . . 30 Influence Decreases 696 | . 95 35 566 Entered New Map 28 | . . . 28 Time Decay 496 | . 85 15 396 Lost Part 172 | . 10 20 142 Squads Dispatched 6 | . 1 1 4 Investigation 3 | . . 1 2 Extermination . | . . . . Reinforcement 3 | . 1 . 2 Assault . | . . . . Garrison . | . . . . Intercept . | . . . . Searches Triggered . | . . . . Construction Impeded . | . . . . Haulers Reinforced . | . . . . Active Scanning Responses . | . . . . Cargo Convoy Interrupts . | . . . . Stealth | -11 -10 -9 -9 --------- Run | Yrd Mat Mat Sto Distress Signals 5 | . 2 . 3 Communications Jammed . | . . . . Distress Signals . | . . . . Times Spotted 61 | . 16 6 39 Peak Tracking Total 6 | . 3 3 6 Tactical Retreats 12 | . 5 . 7 ECM-based Alert Blocks 13 | . 6 . 7 Traps | -11 -10 -9 -9 ------- Run | Yrd Mat Mat Sto Traps Triggered 2 | . 1 1 . Indirectly . | . . . . Trap Hack Attempts . | . . . . Triggered . | . . . . Disarmed . | . . . . Reprogrammed . | . . . . Reused . | . . . . Traps Extracted . | . . . . Installed . | . . . . Triggered . | . . . . Machines | -11 -10 -9 -9 ---------- Run | Yrd Mat Mat Sto Machines Disabled 4 | . . 1 3 Max in Single Turn 1 | . . 1 1 Machines Repaired . | . . . . Machines Dismantled . | . . . . Machines Sabotaged . | . . . . Overloaded Fab Kills . | . . . . Hacking | -11 -10 -9 -9 --------- Run | Yrd Mat Mat Sto Machines Accessed 10 | . 3 1 6 Terminals 7 | . 1 1 5 Fabricators . | . . . . Repair Stations 2 | . 1 . 1 Recycling Units 1 | . 1 . . Scanalyzers . | . . . . Garrison Access . | . . . . Total Hacks 31 | . 9 3 19 Successful 24 | . 6 3 15 Failed 7 | . 3 . 4 Catastrophic 2 | . . . 2 Database Lockouts . | . . . . Manual . | . . . . Terminals 24 | . 4 3 17 Fabricators . | . . . . Repair Stations 5 | . 3 . 2 Recycling Units 2 | . 2 . . Scanalyzers . | . . . . Garrison Access . | . . . . Terminal Hacks 21 | . 3 3 15 Record 12 | . 3 1 8 Open Door 2 | . . . 2 Locate Traps 3 | . . 1 2 Dispatch Records 1 | . . . 1 Investigation Status 1 | . . . 1 Reinforcement Status 1 | . . . 1 Zone Layout 1 | . . 1 . Fabricator Hacks . | . . . . Repair Station Hacks 2 | . 2 . . Scan Component 1 | . 1 . . Repair 1 | . 1 . . Recycling Unit Hacks 1 | . 1 . . Report Inventory 1 | . 1 . . Scanalyzer . | . . . . Garrison Access Hacks . | . . . . Unauthorized Hacks . | . . . . Terminals . | . . . . Fabricators . | . . . . Repair Stations . | . . . . Recycling Units . | . . . . Scanalyzers . | . . . . Garrison Access . | . . . . Data Cores Recovered . | . . . . Used . | . . . . Hacking Detections 6 | . 2 1 3 Full Trace Events 4 | . . 1 3 Feedback Events . | . . . . Feedback Blocked . | . . . . Robot Schematics Acquired . | . . . . Robots Built . | . . . . Authchips . | . . . . Time . | . . . . Total Robot Build Rating . | . . . . Part Schematics Acquired . | . . . . Parts Built . | . . . . Authchips . | . . . . Time . | . . . . Total Part Build Rating . | . . . . Part Studies Acquired . | . . . . Parts Repaired 1 | . 1 . . Time 26 | . 26 . . Parts Recycled . | . . . . Recycled Matter . | . . . . Retrieved Matter . | . . . . Retrieved Components . | . . . . Parts Scanalyzed . | . . . . Part Schematics Acquired . | . . . . Parts Damaged . | . . . . Bothacking | -11 -10 -9 -9 ------------ Run | Yrd Mat Mat Sto Used RIF Installer . | . . . . Robots Hacked . | . . . . Non-combat . | . . . . Combat . | . . . . Robot Hacks Applied . | . . . . Relay Couplers Released . | . . . . Fabnet Peak Effective % . | . . . . Robots Rewired . | . . . . Allies Hacked . | . . . . Hacks Repelled . | . . . . Allies | -11 -10 -9 -9 -------- Run | Yrd Mat Mat Sto Total Allies . | . . . . Largest Group . | . . . . Highest-Rated Group . | . . . . Highest-Rated Ally . | . . . . Total Orders . | . . . . Ally Attacks . | . . . . Total Damage . | . . . . Kills . | . . . . Allies Corrupted . | . . . . Allies Melted . | . . . . Intel | -11 -10 -9 -9 ------- Run | Yrd Mat Mat Sto Active Infowar (turns) 1067 | . 383 220 464 ECM 1067 | . 383 220 464 Robot Analysis Total . | . . . . Derelict Logs Recovered . | . . . . Drone Launches . | . . . . Drone Recoveries . | . . . . Exploration | -11 -10 -9 -9 ------------- Run | Yrd Mat Mat Sto Turns Passed 1905 | 54 525 231 1095 Spaces Moved 923 | 30 281 81 531 Core 5 | 2 . . 3 Treads 918 | 28 281 81 528 Legs . | . . . . Wheels . | . . . . Hover . | . . . . Flight . | . . . . Fastest Speed 50 | 50 160 160 160 Average Speed 167 | 152 160 227 163 Slowest Speed 550 | 160 160 240 550 Overloaded Moves . | . . . . Propulsion Burnouts . | . . . . Robots Hopped . | . . . . Potential Cave-ins . | . . . . Cave-ins Triggered . | . . . . Exploration Rate (%) 30 | 2 42 9 68 Regions Visited 3 Branch Regions 1 Pre-discovered Areas . | . . . . Known Exits Taken . | . . . . Unknown Exits Taken 3 | 1 1 1 . Scrap Searched . | . . . . Spaces Dug . | . . . . Terrain Destroyed 8 | . 3 3 2 Melee . | . . . . Projectile . | . . . . AOE 8 | . 3 3 2 Terrain Rammed . | . . . . Walls Destroyed . | . . . . Machines Disabled . | . . . . Actions | -11 -10 -9 -9 --------- Run | Yrd Mat Mat Sto Total 1129 | 35 339 102 653 Wait 65 | . 33 2 30 Move 920 | 29 280 80 531 Hop . | . . . . Pick Up 20 | . 8 1 11 Fast Attach 18 | 6 3 3 6 Attach 12 | . 1 2 9 Detach . | . . . . Swap 8 | . 2 1 5 Drop 7 | . 2 1 4 Fire 73 | . 9 11 53 Melee . | . . . . Ram . | . . . . Kick . | . . . . Crush 6 | . 1 1 4 Escape Stasis . | . . . . Rewire . | . . . . Trap . | . . . . Miscellaneous . | . . . . Route ------- -11/Scrapyard -10/Materials -9/Materials -9/Storage History --------- Turn | Location | Event 9 | -11/Scrapyard | Discovered new exit (range 14) 55 | -11/Scrapyard | Entered Materials 322 | -10/Materials | Build established: Mutant 419 | -10/Materials | Repaired ECM Suite 564 | -10/Materials | Discovered new exit (range 3) 580 | -10/Materials | Entered another Materials area 580 | -9/Materials | Evolved 2 slots: Utility x1, Weapon x1 764 | -9/Materials | Discovered new exit (range 12) 811 | -9/Materials | Entered Storage 889 | -9/Storage | Build established: Tank 1301 | -9/Storage | Build established: Gunner 1453 | -9/Storage | Core integrity fell below 50% 1494 | -9/Storage | Lost 7 parts (1n1u5w) 1500 | -9/Storage | Destroyed 7 combat bots 1884 | -9/Storage | Core integrity fell below 20% 1906 | -9/Storage | Destroyed by Y-45 Defender with Heavy Assault Rifle Last Messages --------------- Y-45 Defender destroyed. Overheating: Hvy. Ion Engine damaged (-24). Acquired Targeting Computer. S-10 Pest destroyed. K-01 Serf collects debris. R-06 Scavenger collects Lgt. Assault Rifle. K-01 Serf collects debris. R-06 Scavenger collects Lgt. Ion Engine. K-01 Serf collects debris. Lgt. Treads destroyed. Lgt. Armor Plating destroyed. Destroyed Flight Unit. Lgt. EM Pulse Cannon destroyed. S-10 Pest destroyed. Lgt. Treads destroyed. K-01 Serf collects debris. S-10 Pest destroyed. Critical hit (Burn: +37). Particle Cannon destroyed. Critical hit (Burn: +37). Map ----- +----------------------------------------------------+ | | | | | | | | | | | | | | | | | ?????????????????????????????????????? | | ?????????????????????????????????????? | | ?????????????????????????????????????? | | ??????????????######################## | | ????????# | | ??????????????####### ################ | | ?????????????????####/#####??????????? | | ?????????????????# #??????????? | | ?????????????????# #??????????? | | ?????????????????# #??????????? | | ?????????????????# #?????????? | | ?????????????????# #??????????? | | ?????????????????# #??????????? | | ?????????????????# = #??????????? | | ?????????????????# =% #??????????? | | ?????????????????# #??????????? | | ???# #####+#########+#######???????? | | ???# @ = %Y ? | | ???# [% =s | | ???# a k | | ???#########;##;######/##+#########/?# | | ?????????? ?? ????????????????????? | | ???????? ""??" ???????????????????? | | ??????# ""??" ??????????????????? | | ??????# ""??" #?????????????????? | | ??????# ?? #?????????????????? | | ??????############+#?????????????????? | | ????????# # #?????????????????? | | ????????# """ # #?????????????????? | | ????????# """ # ################### | | ????????# """ # ^ | | ????????# + ^ | | ????????# """ # ^ | | ????????# """ #####+############### | | ????????# """ #??# #??????????? | | ????????# #??# #??????????? | | ????????###"T"####??# #??????????? | | ??????????#####?????# #??????????? | | ????????????????????# #??????????? | | ????????????????????# #????#####?? | | ????????????????????# #???? ] #?? | | ????????????????????# #???? ??? | +----------------------------------------------------+ Best States ------------- Heat Dissipation 38 Energy Generation 14 Energy Capacity 280 Matter Stores 300 Matter Capacity 300 Sight Range 16 Terrain Scan Density 85 ECM Strength 1 Armor Coverage 225 Evasion (%) 40 Recoil Reduction 2 Item Schematics ----------------- None Robot Schematics ------------------ None Fabricated ------------ Nothing Repaired ---------- ECM Suite | 55% | -10/Materials Studied --------- None Alien Tech Used ----------------- None Achievements -------------- None Challenges ------------ None Game ------ Seed TeleporterVampiricMapper Manual? 0 Play Time 00:24:24 Cumulative 33.2 hours Start 2026.08.21 @ 05:55:17 End 2026.08.22 @ 08:38:36 Sessions 3 Manual Loads 0 Difficulty Rogue Special Mode None Game No. 65 Rogue 65 Adventurer 0 Explorer 0 Win Type - Total 0 Types 0/0/0/0/0/0/0/0/0/0 Lore% 13 Gallery% 23 Achievement% 15 Wizard Run 0 Options --------- Layout 1 ASCII 0 Keyboard 0 Movement Numpad Keybinds 0 Fullscreen 1 Font 32/SmallcapsGlow Map View 50x35 Zoom Use 0% Tactical HUD 0 Map Filters NONE Filters NONE Steam 1 RUN: 046e02f0-55f7-4001-9383-9b291fbae57a